Cogmind - Beta 16.1 @@@ ROGUE MODE // 2026.04.08 @ 17:22:20 Player: Maelyn Result: Destroyed by G-34 Mercenary with Small Laser Performance ------------- Evolutions (1) 500 Regions Visited (3) 600 Robots Destroyed (46) 230 Value Destroyed (1151) 1151 Prototype IDs (0) 0 Alien Tech Used (0) 0 Bonus (0) 0 TOTAL SCORE: 2481 Bonus ------- None Cogmind --------- Core Integrity 0/400 Matter 288/300 Energy 85/100 System Corruption 0% Temperature Cool (6) Movement Core (450) Ox8 Location -9/Mines Parts ------- > --- POWER (1) -------- (None) > --- PROPULSION (2) --- (None) > --- UTILITY (4) ------ Large Storage Unit Visual Processing Unit Light Armor Plating > --- WEAPON (2) ------- Beam Rifle > --- INVENTORY (15) --- Light Ion Engine Improved Ion Engine Improved Ion Engine Medium Storage Unit Seismic Detector Utility Shielding Beam Rifle Grenade Launcher Peak State ------------ > --- POWER ------------ Improved Ion Engine > --- PROPULSION ------- Light Treads Light Treads > --- UTILITY ---------- Large Storage Unit Visual Processing Unit Seismic Detector Light Armor Plating > --- WEAPON ----------- Autogun Autogun > --- INVENTORY -------- Ion Engine Light Ion Engine Light Treads Wheel Wheel Small Storage Unit Seismic Detector Seismic Detector ECM Suite Beam Rifle Assault Rifle Heavy Assault Rifle Grenade Launcher [Rating: 14] Favorites ----------- Power Ion Engine Engine Ion Engine Power Core Light Nuclear Core Propulsion Light Treads Treads Light Treads Leg Aluminum Leg Wheel Wheel Utility Seismic Detector Device Seismic Detector Storage Large Storage Unit Processor Visual Processing Unit Protection Light Armor Plating Weapon Assault Rifle Energy Gun Medium Laser Ballistic Gun Assault Rifle Launcher Rocket Launcher Build | -11 -10 -9 -9 ------- Run | Yrd Mat Mat Min Slots Evolved 2 | . . 2 . Power . | . . . . Propulsion . | . . . . Utility 2 | . . 2 . Weapon . | . . . . Parts Attached 34 | 7 1 22 4 Power 5 | 1 . 4 . Engine 4 | 1 . 3 . Core 1 | . . 1 . Reactor . | . . . . Propulsion 9 | 2 . 7 . Treads 5 | 2 . 3 . Leg 2 | . . 2 . Wheel 2 | . . 2 . Hover . | . . . . Flight . | . . . . Utility 10 | 2 1 6 1 Device 5 | 1 . 4 . Storage 2 | 1 1 . . Processor 1 | . . 1 . Hackware . | . . . . Protection 2 | . . 1 1 Artifact . | . . . . Weapon 10 | 2 . 5 3 Energy Gun 4 | 1 . 1 2 Energy Cannon . | . . . . Ballistic Gun 5 | 1 . 4 . Ballistic Cannon . | . . . . Launcher 1 | . . . 1 Special Weapon . | . . . . Impact Weapon . | . . . . Slashing Weapon . | . . . . Piercing Weapon . | . . . . Special Melee Weapon . | . . . . Unidentified Prototypes . | . . . . Parts Lost 15 | . 1 6 8 Power 2 | . . 1 1 Propulsion 4 | . . 2 2 Utility 4 | . . 2 2 Weapon 5 | . 1 1 3 Highest Loss Streak 6 | . 1 3 6 To Critical Strikes . | . . . . Average Backups 9 | 4 6 10 9 Power 1 | . 1 1 2 Propulsion 2 | 2 2 2 . Utility 3 | . 1 3 4 Weapon 2 | 1 1 2 2 Tool/Special . | . . . . Unused Backups 5 | . . . 5 Power 1 | . . . 1 Propulsion . | . . . . Utility 3 | . . . 3 Weapon 1 | . . . 1 Tool/Special . | . . . . Average Slot Usage (%) 96 | . 100 95 97 Engine 8 | . 14 6 10 Core 2 | . . 4 . Treads 12 | . 28 12 . Leg 8 | . . 7 20 Device 17 | . 14 16 21 Storage 11 | . 14 11 11 Processor 9 | . . 10 11 Protection 1 | . . 2 . Energy Gun 6 | . 14 4 7 Ballistic Gun 16 | . 14 17 13 Peak Build Rating 14 | 7 7 14 13 Average Rating 11 | 3 7 12 12 On Entrance 6 | . 7 6 12 Avg Prop Armor Cover (%) . | . . . . Naked Turns . | . . . . Heaviest Build 37 | 15 30 37 35 Greatest Support 40 | 40 40 40 20 Greatest Overweight (x) 9 | 1 . 1 9 Average Overweight (x) . | . . . 1 Largest Inventory Capacity 15 | 8 15 15 15 Average Capacity 14 | 7 11 15 15 Most Carried 14 | 8 8 14 11 Average Carried 9 | 4 6 10 9 Final Capacity 15 | 8 15 15 15 Final Carried 12 | 4 8 12 8 Class Distribution -------------------- 61% | Scavenger-Mutant 38% | Mutant Dominant Class ---------------- Mutant | -10/Materials Scavenger-Mutant | -9/Materials Scavenger-Mutant | -9/Mines Resources | -11 -10 -9 -9 ----------- Run | Yrd Mat Mat Min Matter Collected 1071 | 124 42 806 99 Remotely . | . . . . Salvage Created 1439 | 23 269 995 152 Parts 94 | 5 11 59 19 Haulers Intercepted . | . . . . Recyclers Shooed 2 | . 1 1 . Parts Field Recycled . | . . . . Retrieved Matter . | . . . . Parts Self-Destructed . | . . . . Prevented . | . . . . Parts Restored . | . . . . Kills | -11 -10 -9 -9 ------- Run | Yrd Mat Mat Min Combat Hostiles Destroyed 34 | . 4 25 5 Guns 33 | . 4 25 4 AOE 1 | . . . 1 Classes Destroyed 8 | 1 5 2 . Worker 1 | . 1 . . Builder 2 | . 1 . 1 Tunneler 4 | 1 . . 3 Operator 2 | . 1 1 . Watcher 3 | . 2 1 . Swarmer 9 | . . 6 3 Grunt 19 | . 4 13 2 Sentry 6 | . . 6 . Best Kill Streak 6 | 1 6 5 6 Combat Bots Only 5 | . 2 5 3 Max Kills in Single Turn 3 | 1 1 1 3 Gunslinging 1 | . . . 1 Exploded 1 | . . . 1 Melee . | . . . . Uniques/NPCs Destroyed . | . . . . Combat | -11 -10 -9 -9 -------- Run | Yrd Mat Mat Min Hostile Shots Fired 313 | . 44 169 100 Missed 88 | . 8 49 31 Hits 225 | . 36 120 69 Projectile 225 | . 36 120 69 Critical Strikes 3 | . . 2 1 Damage Taken 2416 | . 399 1362 655 Core 489 | . 86 200 203 Absorbed by Shields 94 | . . 94 . Core Remaining (%) 82 | 100 65 . . Volleys Fired 121 | 1 26 79 15 Largest 2 | 2 2 2 2 Hottest 112 | 70 70 100 112 Shots Fired 239 | 2 52 158 27 Gun 236 | 2 52 158 24 Cannon . | . . . . Launcher 3 | . . . 3 Special . | . . . . Kinetic 164 | 1 26 130 7 Thermal 72 | 1 26 28 17 Explosive 3 | . . . 3 Electromagnetic . | . . . . Robot Hit Streak 19 | 1 11 19 4 Robot Miss Streak 6 | . 3 3 6 Penetration Max . | . . . . Secondary Targets 11 | . 1 9 1 Max Gunslinging Chain 1 | . 1 1 1 Shots Hit Robots 154 | 1 34 109 10 Core Hits 72 | 1 13 44 14 Critical Kills . | . . . . Critical Parts Destroyed . | . . . . Critical Strikes 5 | . 2 1 2 Burn 5 | . 2 1 2 Melee Attacks . | . . . . Impact . | . . . . Slashing . | . . . . Piercing . | . . . . Sneak Attacks . | . . . . Combat Hostiles . | . . . . Follow-up Attacks . | . . . . Damage Inflicted 2448 | 13 446 1484 505 Guns 2117 | 13 444 1484 176 Cannons . | . . . . Explosions 329 | . . . 329 Melee . | . . . . Ramming 2 | . 2 . . Kinetic 1520 | . 246 1244 30 Thermal 597 | 13 198 240 146 Explosive 329 | . . . 329 Electromagnetic . | . . . . Impact . | . . . . Slashing . | . . . . Piercing . | . . . . Highest Corruption . | . . . . Average Corruption . | . . . . Corruption Purged . | . . . . Corruption Blocked . | . . . . Overload Shots . | . . . . Overflow Damage . | . . . . Projectiles . | . . . . Explosions . | . . . . Melee . | . . . . Knockbacks . | . . . . Impact . | . . . . Kinetic . | . . . . Secondary . | . . . . Self-Inflicted Damage . | . . . . Shots . | . . . . Rammed 2 | . 2 . . Targets Rammed 2 | . 2 . . Kicked . | . . . . Crushed . | . . . . Highest Temperature 249 | 9 186 249 164 Average Temperature 51 | 6 52 46 69 Received Heat Transfer 934 | . 216 538 180 Effects 2 | . . 2 . Interference 2 | . . 2 . Siege Activations . | . . . . Martial Activations . | . . . . Shielding Activations . | . . . . Robots Disrupted . | . . . . Combat Hostiles . | . . . . Robots Corrupted . | . . . . Combat Hostiles . | . . . . Parts Fried . | . . . . Impact Corruptions . | . . . . Robots Melted . | . . . . Combat Hostiles . | . . . . Parts Melted 6 | . 1 4 1 Heat Transferred 2072 | 37 740 777 518 Parts Sabotaged . | . . . . Parts Stolen . | . . . . Parts Stripped . | . . . . Power Chain Reactions . | . . . . Alert | -11 -10 -9 -9 ------- Run | Yrd Mat Mat Min Maximum Alert Level 1 | . . 1 . Low Security (%) 84 | 100 100 75 100 Level 1 15 | . . 24 . Level 2 . | . . . . Level 3 . | . . . . Level 4 . | . . . . Level 5 . | . . . . High Security . | . . . . Max Security . | . . . . Peak Influence 257 | 5 74 257 96 Initial 96 | . . 22 96 Average 76 | 1 14 102 44 Influence Increases 951 | 5 129 667 150 Destroy 0b10 Robot/C 680 | . 80 500 100 Destroy 0b10 Robot/NC 60 | 5 25 10 20 Destroy Leader 176 | . 24 142 10 Destroy Structure 20 | . . . 20 Lose Combat Pursuer 15 | . . 15 . Influence Decreases 921 | 5 75 474 367 Entered New Map 183 | . . 32 151 Time Decay 602 | 5 65 382 150 Lost Part 136 | . 10 60 66 Squads Dispatched 6 | . 2 4 . Investigation 3 | . 1 2 . Extermination . | . . . . Reinforcement 3 | . 1 2 . Assault . | . . . . Garrison . | . . . . Intercept . | . . . . Searches Triggered . | . . . . Construction Impeded . | . . . . Haulers Reinforced . | . . . . Active Scanning Responses . | . . . . Cargo Convoy Interrupts . | . . . . Stealth | -11 -10 -9 -9 --------- Run | Yrd Mat Mat Min Distress Signals 4 | . 1 3 . Communications Jammed . | . . . . Distress Signals . | . . . . Times Spotted 56 | . 13 35 8 Peak Tracking Total 7 | . 5 7 4 Tactical Retreats 1 | . . 1 . Traps | -11 -10 -9 -9 ------- Run | Yrd Mat Mat Min Traps Triggered 3 | . 1 2 . Indirectly . | . . . . Trap Hack Attempts . | . . . . Triggered . | . . . . Disarmed . | . . . . Reprogrammed . | . . . . Reused . | . . . . Traps Extracted . | . . . . Installed . | . . . . Triggered . | . . . . Machines | -11 -10 -9 -9 ---------- Run | Yrd Mat Mat Min Machines Disabled . | . . . . Max in Single Turn . | . . . . Machines Repaired . | . . . . Machines Dismantled . | . . . . Machines Sabotaged . | . . . . Overloaded Fab Kills . | . . . . Hacking | -11 -10 -9 -9 --------- Run | Yrd Mat Mat Min Machines Accessed . | . . . . Terminals . | . . . . Fabricators . | . . . . Repair Stations . | . . . . Recycling Units . | . . . . Scanalyzers . | . . . . Garrison Access . | . . . . Total Hacks . | . . . . Successful . | . . . . Failed . | . . . . Catastrophic . | . . . . Database Lockouts . | . . . . Manual . | . . . . Terminals . | . . . . Fabricators . | . . . . Repair Stations . | . . . . Recycling Units . | . . . . Scanalyzers . | . . . . Garrison Access . | . . . . Terminal Hacks . | . . . . Fabricator Hacks . | . . . . Repair Station Hacks . | . . . . Recycling Unit Hacks . | . . . . Scanalyzer . | . . . . Garrison Access Hacks . | . . . . Unauthorized Hacks . | . . . . Terminals . | . . . . Fabricators . | . . . . Repair Stations . | . . . . Recycling Units . | . . . . Scanalyzers . | . . . . Garrison Access . | . . . . Data Cores Recovered . | . . . . Used . | . . . . Hacking Detections . | . . . . Full Trace Events . | . . . . Feedback Events . | . . . . Feedback Blocked . | . . . . Robot Schematics Acquired . | . . . . Robots Built . | . . . . Authchips . | . . . . Time . | . . . . Total Robot Build Rating . | . . . . Part Schematics Acquired . | . . . . Parts Built . | . . . . Authchips . | . . . . Time . | . . . . Total Part Build Rating . | . . . . Part Studies Acquired . | . . . . Parts Repaired . | . . . . Time . | . . . . Parts Recycled . | . . . . Recycled Matter . | . . . . Retrieved Matter . | . . . . Retrieved Components . | . . . . Parts Scanalyzed . | . . . . Part Schematics Acquired . | . . . . Parts Damaged . | . . . . Bothacking | -11 -10 -9 -9 ------------ Run | Yrd Mat Mat Min Used RIF Installer . | . . . . Robots Hacked . | . . . . Non-combat . | . . . . Combat . | . . . . Robot Hacks Applied . | . . . . Relay Couplers Released . | . . . . Fabnet Peak Effective % . | . . . . Robots Rewired . | . . . . Allies Hacked . | . . . . Hacks Repelled . | . . . . Allies | -11 -10 -9 -9 -------- Run | Yrd Mat Mat Min Total Allies . | . . . . Largest Group . | . . . . Highest-Rated Group . | . . . . Highest-Rated Ally . | . . . . Total Orders . | . . . . Ally Attacks . | . . . . Total Damage . | . . . . Kills . | . . . . Allies Corrupted . | . . . . Allies Melted . | . . . . Intel | -11 -10 -9 -9 ------- Run | Yrd Mat Mat Min Active Infowar (turns) 1834 | 8 282 1218 326 Optics 1438 | . . 1112 326 Seismic 1709 | 8 282 1105 314 ECM 333 | . . 333 . Robot Analysis Total . | . . . . Derelict Logs Recovered 2 | . . . 2 Drone Launches . | . . . . Drone Recoveries . | . . . . Exploration | -11 -10 -9 -9 ------------- Run | Yrd Mat Mat Min Turns Passed 1893 | 67 282 1218 326 Spaces Moved 853 | 43 123 556 131 Core 25 | 24 . . 1 Treads 472 | 19 123 330 . Legs 316 | . . 186 130 Wheels 40 | . . 40 . Hover . | . . . . Flight . | . . . . Fastest Speed 50 | 50 160 95 190 Average Speed 166 | 111 160 165 193 Slowest Speed 500 | 160 160 190 500 Overloaded Moves . | . . . . Propulsion Burnouts . | . . . . Robots Hopped . | . . . . Potential Cave-ins . | . . . . Cave-ins Triggered . | . . . . Exploration Rate (%) 29 | 4 27 43 43 Regions Visited 3 Branch Regions 1 Pre-discovered Areas 1 | . . . 1 Known Exits Taken . | . . . . Unknown Exits Taken 3 | 1 1 1 . Scrap Searched 1 | . . . 1 Spaces Dug . | . . . . Terrain Destroyed 24 | . . . 24 Melee . | . . . . Projectile . | . . . . AOE 24 | . . . 24 Terrain Rammed . | . . . . Walls Destroyed . | . . . . Machines Disabled . | . . . . Actions | -11 -10 -9 -9 --------- Run | Yrd Mat Mat Min Total 1094 | 59 155 702 178 Wait 34 | . . 15 19 Move 850 | 42 122 555 131 Hop . | . . . . Pick Up 37 | 9 4 20 4 Fast Attach 2 | 2 . . . Attach 17 | 5 . 9 3 Detach . | . . . . Swap 19 | . 1 17 1 Drop 12 | . . 7 5 Fire 121 | 1 26 79 15 Melee . | . . . . Ram . | . . . . Kick . | . . . . Crush 2 | . 2 . . Escape Stasis . | . . . . Rewire . | . . . . Trap . | . . . . Miscellaneous . | . . . . Route ------- -11/Scrapyard -10/Materials -9/Materials -9/Mines (discovered 1 exit: [*Mat]) History --------- Turn | Location | Event 14 | -11/Scrapyard | Discovered new exit (range 16) 68 | -11/Scrapyard | Entered Materials 299 | -10/Materials | Discovered new exit (range 6) 316 | -10/Materials | Build established: Mutant 350 | -10/Materials | Entered another Materials area 350 | -9/Materials | Evolved 2 slots: Utility x2 921 | -9/Materials | Build established: Scavenger-Mutant 1132 | -9/Materials | Lost 3 parts (1n1u1w) 1534 | -9/Materials | Discovered new exit (range 12) 1568 | -9/Materials | Entered Mines 1728 | -9/Mines | Discovered new exit (range 15) 1729 | -9/Mines | Received a Rocket Launcher from a helpful Derelict 1764 | -9/Mines | Core integrity fell below 50% 1835 | -9/Mines | Learned location of Zion (-6) 1840 | -9/Mines | Excavation squad dispatched 1840 | -9/Mines | A large section of the Mines collapsed 1876 | -9/Mines | Core integrity fell below 20% 1894 | -9/Mines | Destroyed by G-34 Mercenary with Small Laser Last Messages --------------- 01876_ Acquired 10 matter. 01877_ T-07 Excavator is excavating. 01878_ Aluminum Leg destroyed. 01879_ T-07 Excavator destroyed. 01879_ Destroyed Seismic Detector. 01879_ U-05 Engineer destroyed. 01879_ Ion Engine destroyed. 01880_ Acquired 6 matter. 01882_ G-34 Mercenary suffers critical hit (Burn). 01882_ G-34 Mercenary destroyed. 01882_ T-07 Excavator destroyed. 01882_ Seismic Detector destroyed. 01882_ T-07 Excavator is excavating. 01883_ Acquired 5 matter. 01885_ G-34 Mercenary destroyed. 01886_ T-07 Excavator is excavating. 01890_ Rocket Launcher destroyed. 01891_ T-07 Excavator is excavating. 01893_ ECM Suite destroyed. Map ----- +----------------------------------------------------+ | ??????????# #?# ## #### ### | | ??????????????# #??# #??# | | ??????????????# #???# #??# """ | | ??????????????# ##### ## ##??# """ | | ??????????????# =% #####???## """ | | ??????????????## % #????????## | | ???????????????#### * < #######?????????### ## | | ??????????????????## [% #?????????????????## ##? | | ???????????????????## = [##?????????????????####?? | | ????????????????????## ##?????????????????????? | | ?????????????????????# #?????????????????????? | | ?????????????????????# ?????????????????????? | | ????????????????????## #?????????????????????? | | ????????????????????# % #?????????????????????? | | ???????????????????## = ##????????????????????? | | ???????????????????# ????????????????????? | | ????????????????# ## ! #????????????????????? | | ????????????????# % ###??????????????????? | | ????????????????# ### ???????????????????? | | ????????????????????? ##??????????????????? | | ?????????????????????? !=*= #??????????????????? | | ??????????????????????# %% ???????????????????? | | ???????????????## ######g g #????????????????????? | | ??????? # ;* ##????????????????????? | | ???????????????#########= ##?????????????????????? | | ???????????????????????#;@#####??????????????????? | | ???????????????????????# # #??????????????????? | | ???????????????????????# t#;# $ #???????????? | | ???????????????????????## ### #### ###???????????? | | ????????????????????????### #??????????????????? | | ????????????????????????## ?????????????????? | | ?????????????????????????## ####????????????????? | | ???????????????????????????###???????????????????? | | ?????????????????????????????????????????????????? | | ?????????????????????????????????????????????????? | | ?????????????????????????????????????????????????? | | ?????????????????????????????????????????????????? | | | | | | | | | | | | | | | | | | | | | | | | | | | +----------------------------------------------------+ Best States ------------- Heat Dissipation 28 Energy Generation 14 Energy Capacity 265 Matter Stores 300 Matter Capacity 300 Sight Range 18 Terrain Scan Density 10 ECM Strength 1 Armor Coverage 150 Evasion (%) 50 Recoil Reduction 2 Item Schematics ----------------- None Robot Schematics ------------------ None Fabricated ------------ Nothing Repaired ---------- Nothing Studied --------- None Alien Tech Used ----------------- None Achievements -------------- None Challenges ------------ None Game ------ Seed CompanionImpactStripper Manual? 0 Play Time 00:16:40 Cumulative 21.2 hours Start 2026.04.08 @ 17:07:58 End 2026.04.08 @ 17:22:20 Sessions 1 Manual Loads 0 Difficulty Rogue Special Mode None Game No. 59 Rogue 59 Adventurer 0 Explorer 0 Win Type - Total 0 Types 0/0/0/0/0/0/0/0/0/0 Lore% 10 Gallery% 20 Achievement% 12 Wizard Run 0 Options --------- Layout 2 ASCII 0 Keyboard 0 Movement Mouse Keybinds 0 Fullscreen 1 Font 24/Crisp Map View 50x44 Zoom Use 0% Tactical HUD 1 Map Filters NONE Filters NONE Steam 1 RUN: 33526e78-cd28-4e42-840f-d003ef52027a